bitfinex-derivatives/quotes_ETHF0:USTF0_20251211
["timestamp","ask_amount","ask_price","bid_price","bid_amount"]
[1765423487534,2.8273,3188.4,3188.3,1.48369]
[1765423487740,2.8273,3188.8,3188.7,0.15677]
[1765423489142,2.8273,3188.8,3188.7,1.48367]
[1765423489437,0.00470167,3189.1,3188.7,2.745]
[1765423489645,2.83200167,3189.1,3189.0,0.15676]
[1765423490936,6.68500167,3189.1,3189.0,0.15676]
[1765423492133,6.68500167,3189.1,3189.0,1.48366]
[1765423492341,6.68500167,3189.1,3189.0,0.15676]
[1765423494840,5.22460167,3189.1,3189.0,2.90176]
[1765423495640,5.22460167,3189.1,3189.0,1.48366]
[1765423496240,3.85770167,3189.1,3189.0,2.90176]
[1765423496441,0.00470167,3189.1,3189.0,3.70946]
[1765423497341,3.92748901,3189.7,3189.6,0.15673]
[1765423497546,2.8273,3189.7,3189.6,0.15673]
[1765423497741,1.3669,3190.0,3189.9,1.48361]
[1765423498150,1.3669,3190.0,3189.9,0.15671]
[1765423498151,2.8273,3190.0,3189.9,0.15671]
[1765423499535,3.6062,3190.0,3189.9,0.15671]
[1765423501045,2.60861226,3190.1,3190.0,1.42791]
[1765423501245,0.00311226,3190.1,3190.0,3.52621]
[1765423501637,2.60861226,3190.1,3190.0,0.15671]
[1765423502041,0.00311226,3190.1,3190.0,3.52621]
[1765423502249,2.6055,3191.0,3190.9,1.42786]
[1765423502552,3.4308,3191.5,3191.4,0.15664]
[1765423503245,1.2929,3190.6,3190.5,1.52673398]
[1765423503442,2.6055,3191.2,3191.1,0.15665]
[1765423504245,2.6055,3191.2,3191.1,0.16030756]
[1765423504444,2.6055,3191.2,3191.1,0.00365756]
[1765423504647,3.0228,3190.5,3190.4,0.15668]
[1765423505645,2.6055,3189.7,3189.6,0.25221115]
[1765423505842,2.6055,3189.7,3189.6,0.00470167]
[1765423506655,2.6055,3189.7,3189.6,0.1638098]
[1765423507248,1.2929,3189.9,3189.8,0.15671]
[1765423507453,2.6055,3189.9,3189.8,0.15671]
[1765423508752,2.6055,3189.2,3189.1,0.15675]
[1765423509554,2.6055,3189.2,3187.2,1.64264568]
[1765423509756,2.6055,3188.4,3188.3,0.15679]
[1765423509944,3.1542,3188.4,3188.3,0.15679]
[1765423511649,2.6043,3188.3,3187.8,0.00325341]
[1765423511855,2.6043,3187.9,3187.8,0.00325341]
[1765423512346,2.6043,3187.9,3187.8,0.16006341]
[1765423515054,2.6043,3187.6,3187.5,0.00470167]
[1765423515657,2.6043,3187.6,3187.5,0.16153167]
[1765423518759,1.3267,3187.6,3187.5,1.49173167]
[1765423519060,2.6043,3187.6,3187.5,0.16153167]
[1765423519760,0.00470167,3188.2,3188.0,0.1568]
[1765423519761,2.6043,3188.1,3188.0,0.1568]
[1765423522258,1.3267,3188.1,3188.0,1.487]
[1765423522456,2.6043,3188.1,3188.0,0.1568]
[1765423523358,1.3267,3188.1,3188.0,1.487]
[1765423523665,2.6043,3188.1,3188.0,1.487]
[1765423523960,2.6043,3188.1,3188.0,0.1568]
[1765423524964,2.6043,3188.1,3188.0,1.487]
[1765423526273,1.3267,3188.1,3188.0,2.7392]
[1765423527472,2.6043,3188.1,3188.0,0.1568]
[1765423527974,2.60900167,3188.2,3188.1,0.1568]
[1765423528272,2.60900167,3188.2,3188.1,1.487]
[1765423529769,2.60900167,3188.2,3188.1,0.1568]
[1765423530476,2.60900167,3188.2,3188.1,1.3122]
[1765423530666,2.60900167,3188.2,3188.1,0.1568]
[1765423532076,2.60900167,3188.2,3188.1,1.3122]
[1765423532580,2.60900167,3188.2,3188.1,0.1568]
[1765423532766,0.00470167,3188.2,3188.1,2.4563]
[1765423533171,1.67e-06,3188.2,3188.1,2.4563]
[1765423533571,2.4094,3189.0,3188.9,0.15676]
[1765423533768,2.4094,3189.0,3188.9,1.31216]
[1765423534569,2.4094,3189.0,3188.9,0.15676]
[1765423535182,2.6804,3189.0,3188.9,0.15676]
[1765423539179,2.4094,3189.0,3188.9,1.31216]
[1765423539482,2.4094,3189.0,3188.9,0.15676]
[1765423542077,2.4094,3189.0,3188.9,1.31216]
[1765423542384,2.4094,3189.0,3188.9,0.15676]
[1765423542881,6.2624,3189.1,3189.0,1.31216]
[1765423543082,5.0237,3189.1,3189.0,2.45626]
[1765423543382,6.2624,3189.1,3189.0,1.31216]
[1765423543583,6.2624,3189.1,3189.0,0.15676]
[1765423544179,3.853,3189.1,3189.0,2.45626]
[1765423544380,5.0237,3189.1,3189.0,3.14326]
[1765423544582,6.2624,3189.1,3189.0,0.15676]
[1765423546185,2.4094,3188.1,3186.5,9.56946274]
[1765423546384,2.4094,3188.1,3188.0,0.1568]
[1765423546690,1.1707,3188.1,3188.0,2.4563]
[1765423546885,2.4094,3188.1,3188.0,0.1568]
[1765423547787,2.4094,3188.3,3188.2,0.15679]
[1765423549284,1.1707,3188.3,3188.2,2.45629]
[1765423549588,2.4094,3188.9,3188.8,0.15677]
[1765423550182,1.1707,3188.9,3188.8,2.45627]
[1765423550381,2.4094,3188.9,3188.8,1.31217]
[1765423551284,6.2624,3188.9,3188.8,1.31217]
[1765423551590,6.2624,3188.9,3188.8,0.15677]
[1765423553886,6.2624,3188.9,3188.8,1.31217]
[1765423554194,1.17298959,3189.2,3189.1,1.31215]
[1765423554491,2.41168959,3189.2,3189.1,1.31215]
[1765423556186,0.00228959,3189.2,3189.1,2.45625]
[1765423559394,0.00228959,3189.2,3189.1,0.15675]
[1765423559395,2.28358959,3189.2,3189.1,0.15675]
[1765423559585,2.28358959,3189.2,3188.8,0.15676]
[1765423559793,2.2419,3188.9,3188.1,12.715]
[1765423559994,2.2419,3188.9,3188.0,0.687]
[1765423560286,2.2419,3189.0,3188.9,1.28006]
[1765423560488,1.1313,3189.0,3188.9,2.35396]
[1765423560792,1.1313,3186.6,3186.5,1.96488]
[1765423560987,1.1313,3187.1,3187.0,0.15685]
[1765423561196,0.6457,3188.0,3187.0,3.03875]
[1765423561387,0.6457,3188.0,3187.1,0.15685]
[1765423561588,1.1313,3187.4,3187.3,0.15684]
[1765423562094,2.24573456,3187.4,3187.3,0.16007131]
[1765423565501,0.00383456,3187.4,3187.3,2.35727131]
[1765423565704,2.24573456,3187.4,3187.3,0.16007131]
[1765423566202,1.13513456,3187.4,3187.3,1.28337131]
[1765423566603,2.24573456,3187.4,3187.3,0.16007131]
[1765423568098,2.24573456,3187.4,3187.0,0.00470167]
[1765423568299,2.2419,3187.1,3187.0,0.00470167]
[1765423568898,2.2419,3187.1,3187.0,0.16155167]
[1765423569098,2.2419,3187.1,3187.0,1.28485167]
[1765423569301,0.00383456,3187.4,3187.0,0.68940167]
[1765423569602,1.13513456,3187.4,3187.3,2.35404]
[1765423569805,2.24573456,3187.4,3187.3,0.15684]
[1765423570305,0.00383456,3187.4,3187.3,2.35404]
[1765423570506,1.1313,3187.9,3187.8,1.28011]
[1765423570702,2.2419,3187.9,3187.8,0.15681]
[1765423571506,2.24536076,3187.9,3187.8,0.16040997]
[1765423573008,0.00346076,3187.9,3187.8,2.36450997]
[1765423574106,2.06646076,3187.9,3187.8,0.16040997]
[1765423574810,1.0287,3187.1,3187.0,0.68940167]
[1765423575514,2.063,3187.1,3187.0,0.16155167]
[1765423576006,2.063,3186.0,3184.8,0.6239]
[1765423576219,2.063,3185.4,3185.3,0.15694]
[1765423576409,2.06690972,3185.4,3185.3,0.15694]
[1765423581108,1.0287,3183.6,3183.5,0.15702]
[1765423581412,2.063,3183.6,3183.5,0.16005966]
[1765423582314,2.063,3183.8,3183.7,0.15701]
[1765423586215,0.00470965,3183.9,3183.7,0.15701]
[1765423586514,2.063,3184.7,3184.6,0.15697]
[1765423586912,2.063,3184.7,3183.5,0.00303966]
[1765423587113,2.063,3184.7,3182.3,0.15709]
[1765423587114,2.063,3182.4,3182.3,0.15709]
[1765423587518,2.063,3182.4,3181.2,0.6239]
[1765423587710,1.0287,3181.9,3181.2,0.6239]
[1765423587910,2.063,3181.9,3181.8,0.15711]
[1765423588221,2.06670214,3181.9,3181.8,0.15711]
[1765423588413,1.03240214,3181.9,3181.8,0.15711]
[1765423588616,0.00370214,3181.9,3181.8,2.90301]
[1765423588917,0.00370214,3181.9,3181.8,1.83251]
[1765423591419,1.11330214,3181.9,3181.8,0.78771]
[1765423591922,0.00370214,3181.9,3181.8,1.83251]
[1765423592124,1.09842802,3181.9,3181.8,2.90301]
[1765423592313,0.00370214,3181.9,3181.8,2.90301]
[1765423593221,1.09811108,3181.9,3181.8,2.90301]
[1765423593421,2.20771108,3181.9,3181.8,0.15711]
[1765423593627,3.31261108,3181.9,3181.8,0.15711]
[1765423594720,2.2145,3181.6,3181.5,0.00470965]
[1765423594921,3.30890894,3181.6,3181.5,0.00470965]
[1765423595319,3.85393487,3181.6,3181.5,0.00470965]
[1765423595626,4.95883487,3181.6,3181.5,0.00470965]
[1765423596220,3.30890894,3181.6,3181.5,0.00470965]
[1765423596421,2.20400894,3181.6,3181.5,1.04950965]
[1765423596622,1.09440894,3181.6,3181.5,8.27713965]
[1765423596818,1.09440894,3181.6,3181.5,2.27713965]
[1765423598125,1.09440894,3181.6,3181.5,1.20663965]
[1765423598329,2.20400894,3181.6,3181.5,1.20663965]
[1765423598532,2.20400894,3181.6,3181.5,0.16183965]
[1765423599031,2.20400894,3181.6,3181.5,1.20663965]
[1765423599331,2.20400894,3181.6,3181.5,0.16183965]
[1765423599522,3.30890894,3181.6,3181.5,0.16183965]
[1765423600927,1.09440894,3181.6,3181.5,2.27713965]
[1765423601434,2.7136124,3181.6,3181.5,2.27713965]
[1765423601731,1.09440894,3181.6,3181.5,2.90773965]
[1765423604030,0.00370214,3181.9,3181.8,2.27241]
[1765423604334,1.2650556,3182.1,3182.0,2.903]
[1765423604528,0.00470965,3182.2,3182.0,2.903]
[1765423604529,0.00470965,3182.2,3182.1,2.2724]
[1765423604728,9.65e-06,3182.2,3182.1,2.2724]
[1765423605339,0.00263606,3182.2,3182.1,2.27492568]
[1765423606746,2.18109604,3183.0,3182.8,0.15706]
[1765423607141,2.18109604,3183.0,3182.9,2.27236]
[1765423607447,0.2107,3182.5,3180.5,0.6306]
[1765423607657,1.1096,3181.9,3181.8,0.15711]
[1765423608546,0.00247161,3181.9,3181.8,2.27496402]
[1765423613051,2.18419871,3181.9,3181.8,2.27496402]
[1765423613448,2.19827265,3181.9,3181.8,2.27496402]
[1765423613650,0.00247161,3181.9,3181.8,2.27496402]
[1765423613842,0.00470965,3182.3,3182.2,2.27239]
[1765423614446,2.60267107,3182.6,3182.5,2.90298]
[1765423614649,2.2145,3183.0,3182.9,0.15706]
[1765423614852,2.2145,3183.0,3182.5,0.6306]
[1765423615049,2.21854241,3183.0,3182.5,0.6306]
[1765423615349,1.11364241,3183.0,3182.5,0.6306]
[1765423615654,1.11364241,3183.0,3182.9,0.15706]
[1765423615853,0.00404241,3183.0,3182.9,2.27236]
[1765423616048,3.21076732,3183.0,3182.9,0.15706]
[1765423616255,3.83246732,3183.0,3182.9,0.15706]
[1765423620251,1.1096,3182.2,3182.1,1.20189]
[1765423620448,0.99222491,3182.2,3182.1,2.32489]
[1765423620649,1.04714241,3183.0,3182.9,1.19336]
[1765423620844,2.10954241,3183.0,3182.9,1.19336]
[1765423621050,2.10954241,3183.0,3182.9,0.15706]
[1765423623253,2.10954241,3183.0,3182.9,2.32486]
[1765423623254,1.04714241,3183.0,3182.9,2.32486]
[1765423623452,2.10954241,3183.0,3182.9,1.19336]
[1765423623753,0.00404241,3183.0,3182.9,2.32486]
[1765423625455,0.5396,3184.0,3183.0,2.8073]
[1765423625757,1.0431,3183.7,3183.6,2.32482]
[1765423626261,1.647767,3184.2,3183.6,2.32482]
[1765423626561,0.00745847,3184.2,3183.7,0.15702]
[1765423626756,0.00745847,3184.2,3183.7,2.1678]
[1765423627062,0.00745847,3184.2,3184.1,2.3248]
[1765423627264,0.00745847,3184.2,3184.1,2.32860922]
[1765423629257,2.1055,3184.8,3184.7,0.15697]
[1765423629667,2.1055,3184.2,3184.1,0.00380922]
[1765423630163,2.1081795,3184.2,3184.1,0.00380922]
[1765423630865,2.2185,3183.7,3183.6,0.00470965]
[1765423631865,2.2185,3183.7,3183.6,0.00839994]
[1765423633173,2.2185,3183.4,3182.0,0.6395]
[1765423633671,2.2185,3183.4,3182.2,0.26567019]
[1765423634167,1.0812,3182.7,3182.6,1.30407965]
[1765423635173,2.2185,3182.9,3182.8,0.15706]
[1765423635672,0.6341,3183.5,3182.6,0.00470965]
[1765423635873,1.0812,3183.1,3183.0,1.29935]
[1765423636062,0.6398,3184.0,3183.0,2.99215]
[1765423636675,2.2185,3183.4,3183.3,0.15704]
[1765423637666,1.0812,3183.4,3183.3,2.34624]
[1765423639867,1.0812,3183.8,3183.7,2.34622]
[1765423640870,1.0812,3183.9,3183.8,1.29931]
[1765423641471,1.0812,3183.9,3183.8,2.34621]
[1765423641672,2.2185,3183.9,3183.8,0.15701]
[1765423641867,2.2185,3183.1,3182.6,0.00470965]
[1765423642871,0.5722,3184.0,3183.2,2.1892]
[1765423643071,1.0812,3183.3,3183.2,2.1892]
[1765423643780,2.2185,3183.3,3183.2,1.1423]
[1765423643972,1.0812,3183.1,3183.0,1.94525]
[1765423644283,2.2185,3183.1,3183.0,0.15705]
[1765423646675,2.2185,3183.1,3180.7,11.306]
[1765423646676,2.2185,3181.5,3180.4,8.88246274]
[1765423646976,1.0812,3181.0,3180.9,0.15715]
[1765423647469,1.0812,3181.0,3180.9,1.30175837]
[1765423647669,1.08343618,3181.0,3180.9,1.30456132]
[1765423648076,0.00223618,3181.0,3180.9,2.35146132]
[1765423648583,0.00463746,3181.3,3181.2,2.36584]
[1765423649473,2.02953971,3181.3,3181.2,0.15714]
[1765423649778,0.00753971,3181.3,3181.2,2.32674]
[1765423651276,1.01433971,3181.3,3181.2,2.32674]
[1765423651472,0.00753971,3181.3,3181.2,2.32674]
[1765423652273,0.6457,3182.5,3181.5,0.6436]
[1765423652675,1.0068,3181.6,3181.5,0.6436]
[1765423652871,1.0068,3181.6,3181.5,1.90392]
[1765423653078,1.0068,3181.6,3181.5,2.97032]
[1765423653278,1.00966368,3181.6,3181.5,2.97032]
[1765423653679,1.00966368,3181.6,3181.5,1.90392]
[1765423654087,2.02486368,3181.6,3181.5,1.26032]
[1765423654287,2.02486368,3181.6,3181.5,0.15712]
[1765423654984,1.00966368,3181.6,3181.5,1.26032]
[1765423655185,2.02486368,3181.6,3181.5,0.15712]
[1765423656084,1.00966368,3181.6,3181.5,2.32672]
[1765423656283,0.00286368,3181.6,3181.5,2.97032]
[1765423657183,2.02486368,3181.6,3181.5,0.15712]
[1765423663490,0.00286368,3181.6,3181.5,2.97032]
[1765423665284,2.02486368,3181.6,3181.5,0.15712]
[1765423667392,2.6103,3181.0,3180.9,0.00280295]
[1765423667690,1.0068,3180.1,3180.0,0.6459]
[1765423667992,2.022,3180.5,3180.4,0.15718]
[1765423668590,2.022,3180.5,3180.4,0.16090124]
[1765423670289,1.64991176,3180.9,3180.1,2.17430965]
[1765423671295,1.64991176,3180.9,3180.1,2.17618172]
[1765423671487,2.022,3180.4,3180.3,0.15718]
[1765423672595,0.6039,3181.5,3180.7,0.15716]
[1765423672792,2.022,3180.8,3180.7,0.15716]
[1765423673593,2.022,3180.2,3180.1,0.00658172]
[1765423674803,2.022,3180.2,3180.1,0.16377172]
[1765423675302,2.022,3180.2,3180.1,1.26697172]
[1765423675598,1.0068,3180.2,3180.1,1.26697172]
[1765423675803,1.0068,3180.2,3180.1,2.33337172]
[1765423676004,1.0068,3180.2,3180.1,1.26697172]
[1765423676894,2.022,3180.2,3180.1,1.26697172]
[1765423677204,2.022,3180.2,3180.1,0.16377172]
[1765423677597,0.5941,3181.0,3180.2,0.15719]
[1765423677802,1.12374153,3180.9,3180.1,0.00658172]
[1765423678005,1.12374153,3180.8,3180.1,0.00658172]
[1765423678206,1.0068,3180.2,3180.1,2.27587172]
[1765423679897,1.9867,3180.2,3180.1,0.16377172]
[1765423680307,1.9867,3180.2,3180.1,1.13507172]
[1765423681301,1.9867,3180.2,3180.1,0.16377172]
[1765423681503,1.9781,3179.5,3179.4,0.15723]
[1765423682308,0.5422,3180.5,3179.5,2.5636]
[1765423682506,1.9781,3180.0,3179.9,0.1572]
[1765423682812,2.3911,3180.0,3179.9,0.1572]
[1765423683000,1.9781,3179.8,3178.5,0.6436]
[1765423683206,1.9781,3179.4,3179.3,0.15723]
[1765423684417,0.9982,3179.4,3179.3,1.12853]
[1765423684617,1.9781,3179.4,3179.3,1.12853]
[1765423685812,1.9781,3179.4,3179.3,0.15723]
[1765423686206,0.9982,3179.7,3179.6,1.12852]
[1765423686410,1.9781,3179.7,3179.6,0.15722]
[1765423689210,1.9781,3179.1,3179.0,0.0047172]
[1765423689411,1.00228681,3179.1,3179.0,2.5683172]
[1765423689617,0.00408681,3179.1,3179.0,2.5683172]
[1765423690619,0.00408681,3179.1,3179.0,2.7255672]
[1765423691515,1.92838681,3179.1,3179.0,1.1546672]
[1765423691719,1.92838681,3179.1,3179.0,0.1619672]
[1765423692108,1.92838681,3179.1,3178.5,0.6436]
[1765423692309,1.92838681,3179.1,3178.5,2.71957]
[1765423692310,0.942,3178.6,3178.5,2.71957]
[1765423692620,1.9243,3178.6,3178.5,0.15727]
[1765423694716,1.9243,3178.3,3178.2,0.00316317]
[1765423695015,2.4695264,3179.0,3177.8,1.15001]
[1765423695016,0.942,3177.9,3177.8,1.15001]
[1765423695522,1.9243,3177.9,3177.8,0.15731]
[1765423696017,1.9243,3177.9,3177.0,1.75205]
[1765423696018,0.942,3177.1,3177.0,1.75205]
[1765423696321,0.0047172,3178.2,3177.6,0.15731]
[1765423696519,0.942,3177.7,3177.6,1.15001]
[1765423697221,1.9243,3177.7,3177.6,0.15731]
[1765423697611,1.9243,3177.7,3177.6,0.13645227]
[1765423697816,3.05681068,3177.7,3177.6,0.13645227]
[1765423698018,1.9243,3177.1,3176.8,0.15736]
[1765423698218,1.98062736,3178.0,3176.8,2.07606]
[1765423698413,1.13261115,3177.9,3176.5,0.602]
[1765423698615,1.9243,3176.6,3176.5,0.15737]
[1765423698821,3.06114646,3176.6,3176.5,0.15737]
[1765423699224,0.00394833,3176.6,3176.5,2.67807]
[1765423701724,0.94594833,3176.6,3176.5,0.15737]
[1765423701924,1.92824833,3176.6,3176.5,0.15737]
[1765423702329,0.00394833,3176.6,3176.5,2.67807]
[1765423702524,1.13277022,3177.4,3176.5,0.602]
[1765423702822,1.98062736,3178.0,3177.3,0.9927]
[1765423703020,0.942,3177.4,3177.3,0.9927]
[1765423703223,0.942,3177.3,3177.2,0.15734]
[1765423703416,0.942,3177.3,3177.2,1.15004]
[1765423703623,0.00396015,3177.3,3177.2,2.07864952]
[1765423703824,1.92826015,3177.3,3177.2,0.15994952]
[1765423704128,0.94596015,3177.3,3177.2,1.15264952]
[1765423704333,0.00396015,3177.3,3177.2,2.07864952]
[1765423704524,0.00396015,3177.3,3177.2,8.07864952]
[1765423704723,0.00396015,3177.3,3177.2,2.07864952]
[1765423705825,1.92826015,3177.3,3177.2,0.15994952]
[1765423706131,0.00396015,3177.3,3177.2,1.15264952]
[1765423706327,0.00396015,3177.3,3177.2,2.07864952]
[1765423709524,0.00396015,3177.3,3177.2,2.11134952]
[1765423710126,1.13649791,3177.3,3177.2,2.11134952]
[1765423710429,3.07079791,3177.3,3177.2,0.15994952]
[1765423711629,0.9601,3176.6,3176.5,0.602]
[1765423712029,0.9601,3176.6,3176.5,1.5436]
[1765423712327,1.64208751,3177.3,3177.2,1.9003]
[1765423712528,1.13665665,3177.3,3177.2,2.05764]
[1765423712729,1.13665665,3177.3,3177.2,2.05899301]
[1765423714631,3.07095665,3177.3,3177.2,0.15869301]
[1765423715431,2.09675665,3177.3,3177.2,2.05899301]
[1765423715737,2.09675665,3177.3,3177.2,1.10029301]
[1765423715932,3.07095665,3177.3,3177.2,0.15869301]
[1765423717131,2.09675665,3177.3,3177.2,1.10029301]
[1765423718038,3.07095665,3177.3,3177.2,0.15869301]
[1765423719939,1.13665665,3177.3,3177.2,2.05899301]
[1765423724243,1.13643419,3177.3,3177.2,2.05899301]
[1765423724544,3.07073419,3177.3,3177.2,0.15869301]
[1765423725734,1.13643419,3177.3,3177.2,2.05899301]
[1765423725937,3.07073419,3177.3,3177.2,2.05899301]
[1765423726149,3.07073419,3177.3,3177.2,0.15869301]
[1765423727145,1.93826015,3177.3,3177.2,0.15869301]
[1765423727346,0.00396015,3177.3,3177.2,2.05899301]
[1765423727842,1.9343,3176.1,3176.0,0.602]
[1765423728042,1.9343,3176.1,3176.0,0.7297]
[1765423728344,0.9601,3175.5,3175.0,0.5723]
[1765423728642,0.0047172,3176.4,3175.5,0.72972]
[1765423728845,1.13316218,3176.3,3175.8,0.15741]
[1765423729149,2.09326218,3176.2,3176.1,0.9416]
[1765423729448,3.06746218,3176.2,3176.1,0.15739]
[1765423730146,1.9343,3176.2,3176.1,0.15739]
[1765423731049,3.06736375,3176.2,3176.1,0.15739]
[1765423731348,1.9343,3175.2,3174.0,0.5723]
[1765423731647,1.9343,3175.2,3175.1,0.15744]
[1765423734750,1.9343,3175.2,3174.0,0.5723]
[1765423735448,1.9343,3175.2,3172.6,11.329]
[1765423735449,0.5344,3174.0,3173.0,1.67145]
[1765423735649,1.9343,3173.7,3173.6,0.00257596]
[1765423737348,0.9601,3173.1,3172.6,0.28802692]
[1765423737548,0.9601,3173.1,3172.5,0.5723]
[1765423737746,0.00472477,3173.8,3173.0,1.9003]
[1765423737940,0.00472477,3173.8,3173.0,0.9416]
[1765423738351,0.9601,3173.1,3172.6,0.28825637]
[1765423738552,0.00472477,3173.8,3173.0,0.8344]
[1765423738849,1.8219,3173.1,3172.6,0.4387391]
[1765423739049,0.00472477,3173.8,3173.0,1.7496]
[1765423740654,0.00472477,3173.8,3173.0,1.90714]
[1765423740849,0.00472477,3173.8,3173.7,0.8344]
[1765423741046,0.92092477,3173.8,3173.4,0.69792]
[1765423741247,0.00472477,3173.8,3173.7,1.7496]
[1765423742353,1.13371304,3174.9,3174.0,0.5404]
[1765423742549,1.63812736,3175.6,3174.0,0.5404]
[1765423742746,1.13359247,3175.3,3174.0,0.5404]
[1765423743052,1.65881608,3175.9,3174.0,0.5404]
[1765423743256,1.13344095,3175.8,3174.6,0.5404]
[1765423743556,0.00472477,3175.5,3174.9,0.00472477]
[1765423743740,0.00472477,3175.5,3175.4,0.8344]
[1765423744149,0.00472477,3175.5,3175.4,1.7496]
[1765423745350,0.00472477,3175.5,3175.2,0.5404]
[1765423745351,1.8219,3175.0,3174.9,0.00472477]
[1765423745658,3.48071608,3175.0,3174.9,0.00472477]
[1765423745856,4.61427289,3175.0,3174.9,0.00472477]
[1765423746059,0.9162,3175.0,3174.9,0.00472477]
[1765423746554,0.00472477,3175.5,3174.9,0.83912477]
[1765423746755,1.13340103,3175.4,3174.9,0.83912477]
[1765423746949,0.00472477,3175.5,3174.9,0.83912477]
[1765423747151,1.13344877,3175.4,3174.9,0.83912477]
[1765423747359,1.8219,3174.7,3174.0,0.5404]
[1765423747551,0.9162,3174.7,3174.0,0.5404]
[1765423747745,0.9162,3174.7,3174.6,0.5404]
[1765423747953,1.65881608,3175.4,3174.6,0.5404]
[1765423748154,1.13356769,3175.3,3174.6,0.5404]
[1765423748358,1.13356769,3175.2,3174.6,0.5404]
[1765423748550,1.13356769,3175.1,3174.6,0.5404]
[1765423748747,1.65881608,3175.4,3174.6,0.5404]
[1765423748950,1.13356956,3175.3,3174.6,0.5404]
[1765423749258,1.13356956,3175.2,3174.6,0.5404]
[1765423749453,1.8219,3174.7,3174.6,0.5404]
[1765423749760,0.9162,3174.7,3174.6,0.5404]
[1765423750258,0.9162,3174.7,3174.0,0.5404]
[1765423750857,0.9162,3174.7,3174.6,0.4918]
[1765423752858,1.65881608,3175.4,3174.6,1.3187]
[1765423753058,1.13356558,3175.3,3174.6,1.3187]
[1765423753258,1.13356558,3175.2,3174.6,1.3187]
[1765423753558,1.13356558,3175.1,3175.0,1.6377]
[1765423753757,0.8678,3175.1,3175.0,0.8269]
[1765423753960,0.8678,3175.1,3174.6,0.4918]
[1765423755562,1.1335246,3175.0,3174.6,0.4918]
[1765423755761,0.00472477,3175.5,3174.6,0.4918]
[1765423756064,1.7396,3174.7,3174.0,0.5404]
[1765423757465,1.13355571,3174.6,3174.0,0.5404]
[1765423757661,3.29694344,3175.2,3174.0,0.5404]
[1765423757861,1.13356767,3175.1,3174.0,0.5404]
[1765423758166,1.13356767,3175.0,3174.0,0.5404]
[1765423758364,1.13356767,3174.9,3174.0,0.5404]
[1765423758560,1.13356767,3174.8,3174.0,0.5404]
[1765423758865,1.13356767,3174.7,3174.0,0.5404]
[1765423759163,1.13356767,3174.6,3174.0,0.5404]
[1765423759362,1.13356767,3174.5,3174.0,0.5404]
[1765423759560,1.13356767,3174.4,3174.0,0.5404]
[1765423759864,1.63812736,3175.1,3174.0,0.5404]
[1765423760064,1.13356656,3175.0,3174.0,0.5404]
[1765423760267,1.13356656,3174.9,3174.0,0.5404]
[1765423760460,1.13356656,3174.8,3174.5,0.4918]
[1765423760661,1.13356656,3174.7,3174.6,1.6377]
[1765423761658,1.63812736,3175.4,3175.1,1.6377]
[1765423761863,4.512e-05,3175.8,3175.7,1.79511]
[1765423762154,2.18416982,3177.6,3176.0,0.4918]
[1765423762368,2.18416982,3177.7,3176.1,0.15739]
[1765423762558,2.67086982,3178.0,3176.0,0.76450507]
[1765423762764,0.4867,3178.0,3176.0,0.76450507]
[1765423762965,0.00472477,3177.3,3176.7,1.64242477]
[1765423764660,0.00472477,3177.3,3177.2,0.8269]
[1765423765065,0.00472477,3177.3,3177.2,1.6377]
[1765423766567,0.00398519,3178.0,3177.2,1.6377]
[1765423766762,0.87178519,3178.0,3177.0,0.64915]
[1765423766960,0.87178519,3178.0,3176.7,0.00472477]
[1765423766961,0.8678,3177.1,3176.7,0.00472477]
[1765423767158,1.65881608,3177.8,3176.7,0.00472477]
[1765423767159,1.7396,3176.8,3176.7,0.00472477]
[1765423768166,0.00472477,3177.1,3176.7,0.89682477]
[1765423769262,0.00472477,3177.1,3177.0,1.7224]
[1765423769469,1.71092477,3177.1,3176.7,0.00472477]
[1765423769766,0.832,3176.8,3176.7,0.00472477]
[1765423772268,1.7062,3176.8,3176.7,0.00472477]
[1765423772472,0.832,3176.8,3176.7,0.00472477]
[1765423773169,0.00472477,3177.1,3176.7,1.72712477]
[1765423773770,0.00472477,3177.1,3177.0,1.7224]
[1765423774371,0.00472477,3177.1,3177.0,2.2406]
[1765423776870,0.00398519,3178.0,3177.0,8.2406]
[1765423777071,0.00398519,3178.0,3177.9,1.7224]
[1765423777484,0.83598519,3178.0,3177.9,0.8921]
[1765423777681,1.71018519,3178.0,3177.5,0.5182]
[1765423777983,0.832,3177.2,3177.1,0.8921]
[1765423778486,0.34818519,3178.0,3177.1,1.7224]
[1765423779087,0.832,3176.8,3176.7,0.00472477]
[1765423779390,1.13264376,3177.4,3176.7,1.72712477]
[1765423779582,1.7062,3176.8,3176.7,0.00472477]
[1765423780181,1.65881608,3177.5,3176.7,1.72712477]
[1765423780378,1.7062,3176.8,3176.7,0.00472477]
[1765423784194,0.832,3176.8,3176.7,0.89682477]
[1765423784401,1.13282953,3177.4,3176.7,1.72712477]
[1765423784694,1.13282953,3177.3,3176.7,1.72712477]
[1765423784894,0.5217,3177.5,3176.7,1.72712477]
[1765423785091,1.13272686,3177.4,3176.7,1.72712477]
[1765423785391,1.13272686,3177.3,3176.7,1.72712477]
[1765423785596,0.5217,3177.5,3176.7,1.72712477]
[1765423785796,1.13276251,3177.4,3176.7,1.72712477]
[1765423786099,1.13276251,3177.3,3176.8,0.15735]
[1765423786402,0.5217,3177.5,3176.8,0.15735]
[1765423786590,1.13272422,3177.4,3176.8,0.15735]
[1765423786897,2.83892422,3177.3,3176.8,0.15735]
[1765423787096,1.13272371,3177.2,3176.8,0.15735]
[1765423787296,1.7062,3177.3,3176.8,0.15735]
[1765423787497,1.13272365,3177.2,3176.8,0.15735]
[1765423787694,0.1549,3177.5,3176.8,0.15735]
[1765423787894,1.13271796,3177.4,3176.8,0.15735]
[1765423788093,0.832,3176.9,3176.8,1.87975]
[1765423788299,1.63242172,3177.7,3176.7,0.00472477]
[1765423788498,1.13273368,3177.6,3176.7,0.00472477]
[1765423788798,1.7062,3177.2,3177.1,0.15734]
[1765423788999,2.83893368,3177.2,3177.1,0.15734]
[1765423789499,2.83893368,3177.2,3176.7,0.00472477]
[1765423789500,1.7062,3176.8,3176.7,0.00472477]